Cogmind - Beta 10.1 @@@ ROGUE MODE // 2020.10.05 @ 19:26:29 Player: BOTHUNTER Result: Destroyed by D-53 Grenadier with Mini Grenade Launcher Performance ------------- Evolutions (0) 0 Regions Visited (4) 800 Robots Destroyed (25) 125 Value Destroyed (598) 598 Prototype IDs (3) 60 Alien Tech Used (0) 0 Bonus (300) 300 TOTAL SCORE: 1883 Bonus ------- Aligned with FarCom 300 Cogmind --------- Core Integrity 0/250 Matter 260/300 Energy 99/100 System Corruption 0% Temperature Cool (0) Movement Core (50) Location -9/Mines Parts ------- > --- POWER (1) -------- (None) > --- PROPULSION (2) --- (None) > --- UTILITY (2) ------ (None) > --- WEAPON (2) ------- (None) > --- INVENTORY (4) ---- Light Nuclear Core Improved Trap Extractor PSU Rigger Proton Bomb Trap Peak State ------------ > --- POWER ------------ Light Nuclear Core > --- PROPULSION ------- Aluminum Leg Aluminum Leg > --- UTILITY ---------- Small Storage Unit Experimental Sensor Array > --- WEAPON ----------- Beam Rifle Pulse Rifle > --- INVENTORY -------- Light Nuclear Core Aluminum Leg Aluminum Leg Improved Trap Extractor EM Pulse Gun Beam Cannon [Rating: 18] Favorites ----------- Power Light Nuclear Core Engine Ion Engine Power Core Light Nuclear Core Propulsion Aluminum Leg Leg Aluminum Leg Utility Small Storage Unit Device Heat Sink Storage Small Storage Unit Weapon Beam Rifle Energy Gun Beam Rifle Energy Cannon Beam Cannon Ballistic Gun Light Assault Rifle Build | -11 -10 -10 -10 -9 ------- Run | Scr Mat Min Exi Min Slots Evolved . | . . . . . Power . | . . . . . Propulsion . | . . . . . Utility . | . . . . . Weapon . | . . . . . Parts Attached 29 | 6 10 7 4 2 Power 3 | 1 1 1 . . Engine 1 | 1 . . . . Core 2 | . 1 1 . . Reactor . | . . . . . Propulsion 8 | 2 3 3 . . Treads . | . . . . . Leg 8 | 2 3 3 . . Wheel . | . . . . . Hover . | . . . . . Flight . | . . . . . Utility 9 | 1 2 1 4 1 Device 5 | . 2 1 2 . Storage 4 | 1 . . 2 1 Processor . | . . . . . Hackware . | . . . . . Protection . | . . . . . Artifact . | . . . . . Weapon 9 | 2 4 2 . 1 Energy Gun 4 | . 2 2 . . Energy Cannon 2 | . 2 . . . Ballistic Gun 3 | 2 . . . 1 Ballistic Cannon . | . . . . . Launcher . | . . . . . Special Weapon . | . . . . . Impact Weapon . | . . . . . Slashing Weapon . | . . . . . Piercing Weapon . | . . . . . Special Melee Weapon . | . . . . . Unidentified Prototypes 3 | . . 1 2 . Parts Lost 8 | . 2 2 2 2 Power 2 | . 1 . 1 . Propulsion 1 | . . . . 1 Utility . | . . . . . Weapon 5 | . 1 2 1 1 Highest Loss Streak 2 | . 2 2 2 2 Average Slot Usage (%) 85 | . 95 89 66 54 Engine 4 | . 10 . . . Core 8 | . 2 14 9 . Leg 27 | . 28 28 28 20 Device 7 | . 11 8 2 . Storage 14 | . 14 14 15 22 Energy Gun 11 | . 3 23 9 . Energy Cannon 3 | . 10 . . . Ballistic Gun 5 | . 12 . . 10 Naked Turns 2 | . . . . 2 Heaviest Build 50 | 11 16 16 20 50 Greatest Support 20 | 20 20 20 20 20 Greatest Overweight (x) 4 | . . . . 4 Average Overweight (x) . | . . . . 1 Largest Inventory Capacity 18 | 6 6 6 12 18 Average Capacity 6 | 5 6 6 6 15 Most Carried 7 | 2 6 6 6 7 Average Carried 5 | 1 4 5 5 6 Final Capacity 12 | 6 6 6 12 4 Final Carried 6 | 2 6 6 6 4 Class Distribution -------------------- 90% | Mutant 9% | Scavenger-Mutant Dominant Class ---------------- Mutant | -10/Materials Mutant | -10/Mines Mutant | -10/Exiles Mutant | -9/Mines Resources | -11 -10 -10 -10 -9 ----------- Run | Scr Mat Min Exi Min Matter Collected 464 | 210 184 70 . . Remotely . | . . . . . Salvage Created 755 | . 557 190 8 . Parts 53 | . 38 13 2 . Haulers Intercepted 2 | . 2 . . . Recyclers Shooed . | . . . . . Parts Field Recycled . | . . . . . Retrieved Matter . | . . . . . Parts Self-Destructed . | . . . . . Prevented . | . . . . . Kills | -11 -10 -10 -10 -9 ------- Run | Scr Mat Min Exi Min Combat Hostiles Destroyed 19 | . 11 7 1 . Guns 8 | . 1 7 . . Cannons 10 | . 10 . . . AOE 1 | . . . 1 . Classes Destroyed 5 | . 5 . . . Hauler 2 | . 2 . . . Operator 1 | . 1 . . . Watcher 3 | . 3 . . . Swarmer 7 | . 3 3 1 . Grunt 12 | . 8 4 . . Best Kill Streak 4 | . 4 3 1 . Combat Bots Only 4 | . 4 3 1 . Max Kills in Single Turn 1 | . 1 1 1 . Gunslinging . | . . . . . Exploded 1 | . . . 1 . Melee . | . . . . . Uniques/NPCs Destroyed . | . . . . . Combat | -11 -10 -10 -10 -9 -------- Run | Scr Mat Min Exi Min Damage Taken 1220 | . 411 379 241 189 Core 290 | . 67 94 13 116 Absorbed by Shields . | . . . . . Core Remaining (%) 100 | 100 . . . . Volleys Fired 75 | . 54 19 2 . Largest 2 | . 2 2 1 . Hottest 119 | . 112 119 40 . Shots Fired 128 | . 95 31 2 . Gun 80 | . 47 31 2 . Cannon 48 | . 48 . . . Launcher . | . . . . . Special . | . . . . . Kinetic 41 | . 41 . . . Thermal 78 | . 54 24 . . Explosive . | . . . . . Electromagnetic 9 | . . 7 2 . Robot Hit Streak 11 | . 11 8 1 . Robot Miss Streak 6 | . 6 2 1 . Penetration Max . | . . . . . Secondary Targets 1 | . . 1 . . Max Gunslinging Chain 1 | . . 1 . . Shots Hit Robots 71 | . 49 21 1 . Core Hits 33 | . 23 9 1 . Critical Hits 1 | . 1 . . . Critical Kills 1 | . 1 . . . Critical Parts Destroyed . | . . . . . Melee Attacks . | . . . . . Impact . | . . . . . Slashing . | . . . . . Piercing . | . . . . . Sneak Attacks . | . . . . . Combat Hostiles . | . . . . . Follow-up Attacks . | . . . . . Damage Inflicted 1151 | . 763 340 48 . Guns 504 | . 153 340 11 . Cannons 610 | . 610 . . . Explosions 37 | . . . 37 . Melee . | . . . . . Ramming . | . . . . . Kinetic 109 | . 109 . . . Thermal 979 | . 654 288 37 . Explosive . | . . . . . Electromagnetic 63 | . . 52 11 . Impact . | . . . . . Slashing . | . . . . . Piercing . | . . . . . Highest Corruption . | . . . . . Average Corruption . | . . . . . Corruption Purged . | . . . . . Overload Shots . | . . . . . Overflow Damage 7 | . 7 . . . Projectiles 7 | . 7 . . . Explosions . | . . . . . Melee . | . . . . . Knockbacks . | . . . . . Impact . | . . . . . Kinetic . | . . . . . Secondary . | . . . . . Self-Inflicted Damage . | . . . . . Shots . | . . . . . Rammed . | . . . . . Targets Rammed . | . . . . . Kicked . | . . . . . Crushed . | . . . . . Highest Temperature 304 | . 74 304 8 . Average Temperature 67 | . 24 117 5 . Received Heat Transfer 433 | . 213 180 . 40 Effects 1 | . . 1 . . Interference 1 | . . 1 . . Siege Activations . | . . . . . Robots Corrupted . | . . . . . Combat Hostiles . | . . . . . Parts Fried . | . . . . . Impact Corruptions . | . . . . . Robots Melted . | . . . . . Combat Hostiles . | . . . . . Parts Melted 2 | . 1 1 . . Heat Transferred 2072 | . 1406 666 . . Parts Sabotaged . | . . . . . Parts Stolen . | . . . . . Parts Stripped . | . . . . . Power Chain Reactions 1 | . . . 1 . Missiles Intercepted . | . . . . . Alert | -11 -10 -10 -10 -9 ------- Run | Scr Mat Min Exi Min Peak Influence 198 | . 198 95 . 15 Initial 2 | . . 2 . . Average 54 | . 56 62 . 2 Maximum Alert Level . | . . . . . Low Security (%) 100 | 100 100 100 . 100 Level 1 . | . . . . . Level 2 . | . . . . . Level 3 . | . . . . . Level 4 . | . . . . . Level 5 . | . . . . . High Security . | . . . . . Max Security . | . . . . . Squads Dispatched 3 | . 2 1 . . Investigation 2 | . 1 1 . . Extermination . | . . . . . Reinforcement 1 | . 1 . . . Assault . | . . . . . Garrison . | . . . . . Intercept . | . . . . . Construction Impeded . | . . . . . Haulers Reinforced . | . . . . . Stealth | -11 -10 -10 -10 -9 --------- Run | Scr Mat Min Exi Min Distress Signals 1 | . 1 . . . Communications Jammed . | . . . . . Distress Signals . | . . . . . Times Spotted 43 | . 21 7 9 6 Peak Tracking Total 7 | . 5 3 7 4 Tactical Retreats 3 | . 1 . 1 1 Traps | -11 -10 -10 -10 -9 ------- Run | Scr Mat Min Exi Min Traps Triggered 2 | . 1 1 . . Indirectly . | . . . . . Trap Hack Attempts . | . . . . . Triggered . | . . . . . Disarmed . | . . . . . Reprogrammed . | . . . . . Reused . | . . . . . Traps Extracted . | . . . . . Installed 2 | . . . 2 . Triggered . | . . . . . Exploded 2 | . . . 2 . Machines | -11 -10 -10 -10 -9 ---------- Run | Scr Mat Min Exi Min Machines Disabled . | . . . . . Max in Single Turn . | . . . . . Machines Sabotaged . | . . . . . Garrisons Compromised . | . . . . . Overloaded Fab Kills . | . . . . . Fab Network Shutdowns . | . . . . . Hacking | -11 -10 -10 -10 -9 --------- Run | Scr Mat Min Exi Min Machines Accessed 7 | . 5 2 . . Terminals 6 | . 5 1 . . Fabricators . | . . . . . Repair Stations . | . . . . . Recycling Units . | . . . . . Scanalyzers . | . . . . . Garrison Access . | . . . . . Total Hacks 18 | . 16 2 . . Successful 7 | . 5 2 . . Failed 10 | . 10 . . . Catastrophic . | . . . . . Database Lockouts 1 | . 1 . . . Manual 20 | . 16 3 1 . Terminals 17 | . 16 1 . . Fabricators . | . . . . . Repair Stations . | . . . . . Recycling Units . | . . . . . Scanalyzers . | . . . . . Garrison Access . | . . . . . Terminal Hacks 5 | . 3 2 . . Robot Analysis 3 | . 2 1 . . Open Door 1 | . . 1 . . Terminal Index 1 | . 1 . . . Fabricator Hacks . | . . . . . Repair Station Hacks . | . . . . . Recycling Unit Hacks . | . . . . . Scanalyzer . | . . . . . Garrison Access Hacks . | . . . . . Unauthorized Hacks 2 | . 2 . . . Terminals 2 | . 2 . . . Botnet 2 | . 2 . . . Fabricators . | . . . . . Repair Stations . | . . . . . Recycling Units . | . . . . . Scanalyzers . | . . . . . Garrison Access . | . . . . . Data Cores Recovered . | . . . . . Used . | . . . . . Hacking Detections 6 | . 5 1 . . Full Trace Events 4 | . 3 1 . . Feedback Events . | . . . . . Feedback Blocked . | . . . . . Robot Schematics Acquired . | . . . . . Robots Built . | . . . . . Matter . | . . . . . Time . | . . . . . Total Robot Build Rating . | . . . . . Part Schematics Acquired . | . . . . . Parts Built . | . . . . . Matter . | . . . . . Time . | . . . . . Total Part Build Rating . | . . . . . Parts Repaired . | . . . . . Time . | . . . . . Parts Recycled . | . . . . . Recycled Matter . | . . . . . Retrieved Matter . | . . . . . Retrieved Components . | . . . . . Parts Scanalyzed . | . . . . . Part Schematics Acquired . | . . . . . Parts Damaged . | . . . . . Bothacking | -11 -10 -10 -10 -9 ------------ Run | Scr Mat Min Exi Min Used RIF Installer . | . . . . . Robots Hacked . | . . . . . Non-combat . | . . . . . Combat . | . . . . . Robot Hacks Applied . | . . . . . Relay Couplers Released . | . . . . . Robots Rewired . | . . . . . Allies Hacked . | . . . . . Hacks Repelled . | . . . . . Allies | -11 -10 -10 -10 -9 -------- Run | Scr Mat Min Exi Min Total Allies 2 | . . 2 . . Largest Group 2 | . . 2 2 . Highest-Rated Group 41 | . . 41 41 . Highest-Rated Ally 31 | . . 31 31 . Total Orders . | . . . . . Ally Attacks . | . . . . . Total Damage . | . . . . . Kills . | . . . . . Allies Corrupted . | . . . . . Allies Melted . | . . . . . Intel | -11 -10 -10 -10 -9 ------- Run | Scr Mat Min Exi Min Robot Analysis Total 3 | . 2 1 . . Derelict Logs Recovered . | . . . . . Drone Launches . | . . . . . Drone Recoveries . | . . . . . Exploration | -11 -10 -10 -10 -9 ------------- Run | Scr Mat Min Exi Min Turns Passed 2581 | 63 950 896 565 107 Spaces Moved 1512 | 50 639 453 318 52 Core 20 | 10 . . . 10 Treads . | . . . . . Legs 1492 | 40 639 453 318 42 Wheels . | . . . . . Hover . | . . . . . Flight . | . . . . . Fastest Speed 50 | 50 120 120 120 50 Average Speed 120 | 106 120 120 120 155 Slowest Speed 240 | 120 120 120 120 240 Overloaded Moves . | . . . . . Propulsion Burnouts . | . . . . . Robots Hopped . | . . . . . Cave-ins Triggered . | . . . . . Exploration Rate (%) 41 | 3 69 58 65 10 Regions Visited 4 Branch Regions 3 Pre-discovered Areas . | . . . . . Known Exits Taken . | . . . . . Unknown Exits Taken 4 | 1 1 1 1 . Scrap Searched 2 | . . 2 . . Spaces Dug . | . . . . . Terrain Destroyed 2 | . . . 2 . Melee . | . . . . . Projectile . | . . . . . AOE 2 | . . . 2 . Terrain Rammed . | . . . . . Walls Destroyed . | . . . . . Machines Disabled . | . . . . . Actions | -11 -10 -10 -10 -9 --------- Run | Scr Mat Min Exi Min Total 2148 | 57 734 778 499 80 Wait 502 | . 25 287 170 20 Move 1508 | 49 638 452 317 52 Hop . | . . . . . Pick Up 8 | 2 2 4 . . Fast Attach 18 | 6 6 2 3 1 Attach 3 | . . 3 . . Detach 2 | . . 1 1 . Swap 8 | . 4 2 1 1 Drop 22 | . 5 8 3 6 Fire 75 | . 54 19 2 . Melee . | . . . . . Ram . | . . . . . Kick . | . . . . . Crush . | . . . . . Escape Stasis . | . . . . . Rewire . | . . . . . Trap 2 | . . . 2 . Miscellaneous . | . . . . . Route ------- -11/Scrapyard -10/Materials (discovered 3 exits: [*Mat x2] / *Min) -10/Mines -10/Exiles -9/Mines History --------- Turn | Location | Event 2 | -11/Scrapyard | Met Revision 17 7 | -11/Scrapyard | Discovered new exit (range 16) 64 | -11/Scrapyard | Entered Materials 256 | -10/Materials | Discovered new exit (range 15) 318 | -10/Materials | Build established: Mutant 437 | -10/Materials | Discovered new exit (range 14) 642 | -10/Materials | Discovered new exit (range 14) 876 | -10/Materials | Central database locked down 1014 | -10/Materials | Entered Mines 1058 | -10/Mines | Found a damaged Exp. Sensor Array with a note attached 1061 | -10/Mines | Found Prototype Device 1061 | -10/Mines | Identified Exp. Sensor Array 1396 | -10/Mines | Met a Derelict who couldn't figure out how to use a Trap Extractor 1627 | -10/Mines | Core integrity fell below 50% 1722 | -10/Mines | Found a hidden stash of uninstalled traps 1887 | -10/Mines | Deemed a non-threat by the Exiles lab entrance 1888 | -10/Mines | Discovered new exit (range 5) 1910 | -10/Mines | Entered Exiles 1910 | -10/Exiles | Accompanied by 2 allies 1938 | -10/Exiles | Met 8R-AWN 1940 | -10/Exiles | Led the pair of lost Derelicts to a safe place 1970 | -10/Exiles | Met EX-HEX 2120 | -10/Exiles | Met EX-BIN 2139 | -10/Exiles | Aligned with FarCom system 2140 | -10/Exiles | Given EX-Vault access code 2180 | -10/Exiles | Opened EX-Vault 2203 | -10/Exiles | Found Prototype Device 2203 | -10/Exiles | Identified Cloak of Protection 2210 | -10/Exiles | Found Prototype Device 2210 | -10/Exiles | Identified PSU Rigger 2238 | -10/Exiles | Warned to stay clear of 0b10 Research branches 2248 | -10/Exiles | Exiles lab attacked by MAIN.C 2442 | -10/Exiles | Discovered new exit (range 12) 2475 | -10/Exiles | Left Exiles lab with PSU Rigger 2475 | -10/Exiles | Entered Mines 2476 | -9/Mines | Assembled infested the area 2557 | -9/Mines | Core integrity fell below 20% 2582 | -9/Mines | Destroyed by D-53 Grenadier with Mini Grenade Launcher Last Messages --------------- 02475_ Receiving FarCom transmissions... 02476_ ALERT: Infestation in the mines, dispatching Demolisher response squad. 02476_ GM-J5T: "That was close. Too bad in all the rush we got split up from the others." 02491_ GM-J5T: "Oh no, it's like what happened to the Exiles when they were wandering homeless, only there's no Warlord to save us!" 02507_ Acquired Assault Rifle. 02551_ GM-J5T destroyed. 02556_ Aluminum Leg destroyed. 02558_ as-99607 destroyed. 02558_ as-26903 destroyed. 02558_ as-97830 destroyed. 02558_ as-73255 destroyed. 02558_ Dropped Aluminum Leg. 02559_ Dropped Sml. Storage Unit. 02560_ Dropped Exp. Sensor Array. 02560_ Dropped Lrg. Storage Unit. 02561_ Dropped Hcp. Storage Unit. 02563_ The unstable cave ceiling collapses. 02580_ Assault Rifle destroyed. Map ----- +----------------------------------------------------+ | | | | | | | | | | | | | | | | | | | | | | | | | | | | | ?????????????????????????????????????????????????? | | ?????????????????????????????????????????????????? | | ?????????????####????????????????????????????????? | | ????????????## ##???????????????????????????????? | | ???????????## #???????????????????????????????? | | ???????????# #???????????????????????????????? | | ???????????## ###?????????????????????????????? | | ????????????####= #?????????????????????????????? | | ???????????????# ####??????????????????????????? | | ???????????????# #??????????????????????????? | | ?????????????### ######### ##?????????????? | | ????????????## d% @ #?????????????? | | ????????????# % #?????????????? | | ????????????# ####### #?????????????? | | ????????????## % #?????????# ??????????? | | ????????????## ##?????????????? ?????????? | | ????????????# # !! #????????????????????????? | | ????????????## ### ! ! #???????????????????????? | | ?????????????# #?# !! #???????????????????????? | | ?????????????# #?# ##???????????????????????? | | ?????????????# ?## ###????????????????????????? | | ?????????????## ??#####??????????????????????????? | | ??????????????? ?????????????????????????????????? | | ??????????????? ?????????????????????????????????? | | ??????????????? ?????????????????????????????????? | | ??????????????? ?????????????????????????????????? | | ??????????????? ????????????????????????????????? | | ??????????????? ????????????????????????????????? | | ??????????????? ????????????????????????????????? | | ???????????????? ????????????????????????????????? | | ???????????????? ????????????????????????????????? | | ???????????????? ????????????????????????????????? | | ?????????????????????????????????????????????????? | | ?????????????????????????????????????????????????? | | ?????????????????????????????????????????????????? | | ?????????????????????????????????????????????????? | +----------------------------------------------------+ Best States ------------- Heat Dissipation 39 Energy Generation 14 Energy Capacity 250 Matter Stores 300 Matter Capacity 300 Sight Range 16 Robot Scan Range 30 Terrain Scan Density 10 Evasion (%) 50 Item Schematics ----------------- None Robot Schematics ------------------ None Fabricated ------------ Nothing Alien Tech Used ----------------- None Achievements -------------- None Challenges ------------ None Game ------ Seed AerolevLayeredNanosword Manual? 0 Play Time 00:22:46 Cumulative 104.4 hours Start 2020.10.05 @ 19:04:40 End 2020.10.05 @ 19:26:29 Sessions 1 Manual Loads 0 Difficulty Rogue Special Mode None Game No. 159 Rogue 135 Adventurer 22 Explorer 2 Win Type - Total 1 Types 1/0/0/0/0/0/0/0/0 Lore% 48 Gallery% 52 Achievement% 43 Wizard Run 0 Options --------- ASCII 0 Keyboard 0 Movement Numpad Keybinds 0 Fullscreen 1 Font 14/SmallcapsGlow Map View 84x54 Tactical HUD 1 Map Filters NONE Filters NONE Steam 1 RUN: c9a90dc2-102a-4bf7-b3cb-82e1b7f4bbc1